fUSD/lending_fUSD_20250216
["ID","MTS","AMOUNT","RATE_DAILY","PERIOD"]
[353305411,1739746247166,-572.2,0.00011205,2]
[353305412,1739746247178,-500.0,0.00011205,2]
[353305413,1739746247190,-500.0,0.00011205,2]
[353305414,1739746247202,-574.57,0.00011205,2]
[353305415,1739746247214,-500.0,0.00011205,2]
[353305416,1739746247226,-460.66,0.00011205,2]
[353305417,1739746247239,-1262.77,0.00011205,2]
[353305418,1739746247250,-543.04,0.00011205,2]
[353305419,1739746247261,-500.0,0.00011205,2]
[353305420,1739746247272,-500.0,0.00011205,2]
[353305421,1739746247283,-680.0,0.00011205,2]
[353305422,1739746247292,-536.45,0.00011205,2]
[353305423,1739746247302,-500.0,0.00011205,2]
[353305424,1739746247313,-614.85,0.00011205,2]
[353305425,1739746247325,-500.0,0.00011205,2]
[353305426,1739746247336,-500.0,0.00011205,2]
[353305427,1739746247347,-500.0,0.00011205,2]
[353305428,1739746247360,-500.0,0.00011205,2]
[353305429,1739746247371,-500.0,0.00011205,2]
[353305430,1739746247383,-639.79,0.00011205,2]
[353305431,1739746247395,-500.0,0.00011205,2]
[353305432,1739746247406,-500.0,0.00011205,2]
[353305433,1739746247419,-500.0,0.00011205,2]
[353305434,1739746247431,-500.0,0.00011205,2]
[353305435,1739746247444,-500.0,0.00011205,2]
[353305436,1739746247457,-500.0,0.00011205,2]
[353305437,1739746247468,-824.79,0.00011205,2]
[353305438,1739746247481,-500.0,0.00011205,2]
[353305439,1739746247494,-601.42,0.00011205,2]
[353305440,1739746247505,-952.25,0.00011205,2]
[353305441,1739746247517,-500.0,0.00011205,2]
[353305442,1739746247530,-500.0,0.00011205,2]
[353305443,1739746247541,-530.01,0.00011205,2]
[353305444,1739746247553,-500.0,0.00011205,2]
[353305445,1739746247564,-500.0,0.00011205,2]
[353305446,1739746247584,-1308.24,0.00011205,2]
[353305447,1739746247603,-500.0,0.00011205,2]
[353305448,1739746247615,-500.0,0.00011205,2]
[353305449,1739746247627,-675.02,0.00011205,2]
[353305450,1739746247640,-500.0,0.00011205,2]
[353305451,1739746247651,-500.0,0.00011205,2]
[353305452,1739746247663,-500.0,0.00011205,2]
[353305453,1739746247675,-500.0,0.00011205,2]
[353305454,1739746247686,-809.67,0.00011205,2]
[353305455,1739746247696,-595.22,0.00011205,2]
[353305456,1739746247706,-500.0,0.00011205,2]
[353305457,1739746247716,-500.0,0.00011205,2]
[353305458,1739746247728,-503.39,0.00011205,2]
[353305459,1739746247738,-500.0,0.00011205,2]
[353305460,1739746247750,-500.0,0.00011205,2]
[353305461,1739746247763,-500.0,0.00011205,2]
[353305462,1739746247778,-500.0,0.00011205,2]
[353305463,1739746247789,-500.0,0.00011205,2]
[353305464,1739746247799,-1134.63,0.00011205,2]
[353305465,1739746247810,-534.3,0.00011205,2]
[353305466,1739746247820,-500.0,0.00011205,2]
[353305467,1739746247831,-537.51,0.00011205,2]
[353305468,1739746247842,-878.89,0.00011205,2]
[353305469,1739746247853,-500.0,0.00011205,2]
[353305470,1739746247865,-500.0,0.00011205,2]
[353305471,1739746247878,-500.0,0.00011205,2]
[353305472,1739746247889,-500.0,0.00011205,2]
[353305473,1739746247899,-500.0,0.00011205,2]
[353305474,1739746247909,-500.0,0.00011205,2]
[353305475,1739746247919,-302.2,0.00011205,2]
[353305476,1739746247929,-632.77,0.00011205,2]
[353305477,1739746247939,-500.0,0.00011205,2]
[353305478,1739746247950,-500.0,0.00011205,2]
[353305479,1739746247960,-578.41,0.00011205,2]
[353305480,1739746247971,-500.0,0.00011205,2]
[353305481,1739746247983,-500.0,0.00011205,2]
[353305482,1739746247993,-500.0,0.00011205,2]
[353305483,1739746248004,-500.0,0.00011205,2]
[353305484,1739746248015,-500.0,0.00011205,2]
[353305485,1739746248028,-500.0,0.00011287,2]
[353305486,1739746248039,-500.0,0.00011287,2]
[353305487,1739746248051,-574.06,0.00011287,2]
[353305488,1739746248062,-500.0,0.00011287,2]
[353305489,1739746248073,-500.0,0.00011287,2]
[353305490,1739746248084,-500.0,0.00011287,2]
[353305491,1739746248095,-500.0,0.00011287,2]
[353305492,1739746248106,-500.0,0.00011287,2]
[353305493,1739746248117,-500.0,0.00011287,2]
[353305494,1739746248129,-500.0,0.00011287,2]
[353305495,1739746248142,-500.0,0.00011287,2]
[353305496,1739746248153,-500.0,0.00011287,2]
[353305497,1739746248165,-500.0,0.00011287,2]
[353305498,1739746248177,-500.0,0.00011287,2]
[353305499,1739746248190,-500.0,0.00011287,2]
[353305500,1739746248201,-500.0,0.00011287,2]
[353305501,1739746248213,-500.0,0.00011287,2]
[353305502,1739746248224,-500.0,0.00011287,2]
[353305503,1739746248236,-500.0,0.00011287,2]
[353305504,1739746248247,-500.0,0.00011287,2]
[353305505,1739746248259,-500.0,0.00011287,2]
[353305506,1739746248271,-500.0,0.00011287,2]
[353305507,1739746248282,-500.0,0.00011287,2]
[353305508,1739746248293,-500.0,0.00011287,2]
[353305509,1739746248305,-500.0,0.00011287,2]
[353305510,1739746248316,-500.0,0.00011287,2]
[353305511,1739746248327,-500.0,0.00011287,2]
[353305512,1739746248339,-500.0,0.00011287,2]
[353305513,1739746248351,-500.0,0.00011287,2]
[353305514,1739746248361,-500.0,0.00011287,2]
[353305515,1739746248371,-500.0,0.00011287,2]
[353305516,1739746248382,-500.0,0.00011287,2]
[353305517,1739746248393,-500.0,0.00011287,2]
[353305518,1739746248404,-552.91,0.00011287,2]
[353305519,1739746248415,-500.0,0.00011287,2]
[353305520,1739746248427,-500.0,0.00011287,2]
[353305521,1739746248439,-301.79,0.00011287,2]
[353305522,1739746248455,-500.0,0.00011287,2]
[353305523,1739746248467,-265.65,0.00011287,2]
[353305524,1739746248480,-500.0,0.00011287,2]
[353305525,1739746248493,-500.0,0.00011287,2]
[353305526,1739746248506,-614.35,0.00011287,2]
[353305527,1739746248518,-500.0,0.00011287,2]
[353305528,1739746248532,-500.0,0.00011287,2]
[353305529,1739746248544,-500.0,0.00011287,2]
[353305530,1739746248556,-500.0,0.00011287,2]
[353305531,1739746248568,-500.0,0.00011287,2]
[353305532,1739746248579,-500.0,0.00011287,2]
[353305533,1739746248591,-500.0,0.00011287,2]
[353305534,1739746248604,-505.67,0.00011287,2]
[353305535,1739746248615,-500.0,0.00011287,2]
[353305536,1739746248627,-500.0,0.00011287,2]
[353305537,1739746248639,-500.0,0.00011287,2]
[353305538,1739746248651,-554.98,0.00011287,2]
[353305539,1739746248661,-500.0,0.00011287,2]
[353305540,1739746248671,-500.0,0.00011287,2]
[353305541,1739746248683,-500.0,0.00011287,2]
[353305542,1739746248696,-500.0,0.00011287,2]
[353305543,1739746248707,-500.0,0.00011287,2]
[353305544,1739746248719,-1469.53,0.00011287,2]
[353305545,1739746248730,-500.0,0.00011287,2]
[353305546,1739746248740,-500.0,0.00011287,2]
[353305547,1739746248752,-500.0,0.00011287,2]
[353305548,1739746248764,-252.129156,0.00011287,2]
[353305549,1739746248776,-500.0,0.00011287,2]
[353305550,1739746248788,-500.0,0.00011287,2]
[353305551,1739746248800,-500.0,0.00011287,2]
[353305552,1739746248814,-356.180502,0.00011287,2]
[353305553,1739746248826,-500.0,0.00011287,2]
[353305554,1739746248838,-500.0,0.00011287,2]
[353305555,1739746248849,-500.0,0.00011287,2]
[353305556,1739746248862,-500.0,0.00011287,2]
[353305557,1739746248873,-503.24,0.00011287,2]
[353305558,1739746248885,-1283.72,0.00011287,2]
[353305559,1739746248897,-500.0,0.00011287,2]
[353305560,1739746248908,-227.17,0.00011287,2]
[353305561,1739746248919,-500.0,0.00011287,2]
[353305562,1739746248930,-500.0,0.00011287,2]
[353305563,1739746248942,-500.0,0.00011287,2]
[353305564,1739746248952,-500.0,0.00011287,2]
[353305565,1739746248969,-500.0,0.00011287,2]
[353305566,1739746248981,-500.0,0.00011287,2]
[353305567,1739746248994,-281.8,0.00011287,2]
[353305568,1739746249006,-919.15,0.00011287,2]
[353305569,1739746249017,-500.0,0.00011287,2]
[353305570,1739746249028,-1004.57,0.00011287,2]
[353305571,1739746249039,-500.0,0.00011287,2]
[353305572,1739746249050,-500.0,0.00011287,2]
[353305573,1739746249062,-500.0,0.00011287,2]
[353305574,1739746249074,-500.0,0.00011287,2]
[353305575,1739746249085,-523.61,0.00011287,2]
[353305576,1739746249097,-500.0,0.00011287,2]
[353305577,1739746249109,-655.36,0.00011287,2]
[353305578,1739746249122,-500.0,0.00011287,2]
[353305579,1739746249133,-500.0,0.00011287,2]
[353305580,1739746249144,-500.0,0.00011287,2]
[353305581,1739746249156,-500.0,0.00011287,2]
[353305582,1739746249167,-500.0,0.00011287,2]
[353305583,1739746249178,-572.2,0.00011287,2]
[353305584,1739746249189,-500.0,0.00011287,2]
[353305585,1739746249201,-500.0,0.00011287,2]
[353305586,1739746249212,-574.57,0.00011287,2]
[353305587,1739746249223,-500.0,0.00011287,2]
[353305588,1739746249234,-1262.77,0.00011287,2]
[353305589,1739746249246,-543.04,0.00011287,2]
[353305590,1739746249258,-500.0,0.00011287,2]
[353305591,1739746249269,-466.43,0.00011287,2]
[353305592,1739746249281,-680.0,0.00011287,2]
[353305593,1739746249292,-536.45,0.00011287,2]
[353305594,1739746249303,-500.0,0.00011287,2]
[353305595,1739746249315,-614.85,0.00011287,2]
[353305596,1739746249327,-500.0,0.00011287,2]
[353305597,1739746249338,-500.0,0.00011287,2]
[353305598,1739746249349,-500.0,0.00011287,2]
[353305599,1739746249360,-500.0,0.00011287,2]
[353305600,1739746249372,-394.97,0.00011287,2]
[353305601,1739746249382,-639.79,0.00011287,2]
[353305602,1739746249393,-500.0,0.00011287,2]
[353305603,1739746249405,-500.0,0.00011287,2]
[353305604,1739746249416,-500.0,0.00011287,2]
[353305605,1739746249428,-500.0,0.00011287,2]
[353305606,1739746249440,-500.0,0.00011287,2]
[353305607,1739746249454,-500.0,0.00011287,2]
[353305608,1739746249466,-824.79,0.00011287,2]
[353305609,1739746249477,-500.0,0.00011287,2]
[353305610,1739746249490,-601.42,0.00011287,2]
[353305611,1739746249502,-952.25,0.00011287,2]
[353305612,1739746249513,-500.0,0.00011287,2]
[353305613,1739746249526,-500.0,0.00011287,2]
[353305614,1739746249537,-530.01,0.00011287,2]
[353305615,1739746249547,-500.0,0.00011287,2]
[353305616,1739746249558,-500.0,0.00011287,2]
[353305617,1739746249569,-1308.24,0.00011287,2]
[353305618,1739746249580,-500.0,0.00011287,2]
[353305619,1739746249590,-500.0,0.00011287,2]
[353305620,1739746249600,-675.02,0.00011287,2]
[353305621,1739746249611,-500.0,0.00011287,2]
[353305622,1739746249621,-500.0,0.00011287,2]
[353305623,1739746249631,-314.25,0.00011287,2]
[353305624,1739746249641,-326.96,0.00011287,2]
[353305625,1739746249652,-809.67,0.00011287,2]
[353305626,1739746249662,-595.22,0.00011287,2]
[353305627,1739746249672,-500.0,0.00011287,2]
[353305628,1739746249682,-503.39,0.00011287,2]
[353305629,1739746249692,-500.0,0.00011287,2]
[353305630,1739746249702,-500.0,0.00011287,2]
[353305631,1739746249711,-500.0,0.00011287,2]
[353305632,1739746249720,-500.0,0.00011287,2]
[353305633,1739746249730,-176.66,0.00011287,2]
[353305634,1739746249740,-500.0,0.00011287,2]
[353305635,1739746249749,-534.3,0.00011287,2]
[353305636,1739746249758,-500.0,0.00011287,2]
[353305637,1739746249768,-537.51,0.00011287,2]
[353305638,1739746250088,-878.89,0.00011287,2]
[353305639,1739746250102,-500.0,0.00011287,2]
[353305640,1739746250111,-500.0,0.00011287,2]
[353305641,1739746250120,-500.0,0.00011287,2]
[353305642,1739746250129,-500.0,0.00011287,2]
[353305643,1739746250138,-500.0,0.00011287,2]
[353305644,1739746250147,-500.0,0.00011287,2]
[353305645,1739746250156,-632.77,0.00011287,2]
[353305646,1739746250167,-500.0,0.00011287,2]
[353305647,1739746250176,-500.0,0.00011287,2]
[353305648,1739746250185,-578.41,0.00011287,2]
[353305649,1739746250194,-500.0,0.00011287,2]
[353305650,1739746250203,-500.0,0.00011287,2]
[353305651,1739746250213,-500.0,0.00011287,2]
[353305652,1739746250222,-500.0,0.00011287,2]
[353305653,1739746250231,-500.0,0.00011287,2]
[353305654,1739746250240,-1325.55,0.00011368,2]
[353305655,1739746250249,-500.0,0.00011369,2]
[353305656,1739746250258,-500.0,0.00011369,2]
[353305657,1739746250267,-236.42,0.00011369,2]
[353305658,1739746250276,-500.0,0.00011369,2]
[353305659,1739746250285,-500.0,0.00011369,2]
[353305660,1739746250294,-500.0,0.00011369,2]
[353305661,1739746250303,-500.0,0.00011369,2]
[353305662,1739746250312,-500.0,0.00011369,2]
[353305663,1739746250321,-500.0,0.00011369,2]
[353305664,1739746250330,-500.0,0.00011369,2]
[353305665,1739746250340,-500.0,0.00011369,2]
[353305666,1739746250349,-500.0,0.00011369,2]
[353305667,1739746250358,-500.0,0.00011369,2]
[353305668,1739746250367,-543.03,0.00011369,2]
[353305669,1739746250377,-500.0,0.00011369,2]
[353305670,1739746250385,-500.0,0.00011369,2]
[353305671,1739746250395,-500.0,0.00011369,2]
[353305672,1739746250404,-500.0,0.00011369,2]
[353305673,1739746250413,-500.0,0.00011369,2]
[353305674,1739746250422,-500.0,0.00011369,2]
[353305675,1739746250431,-500.0,0.00011369,2]
[353305676,1739746250440,-500.0,0.00011369,2]
[353305677,1739746250452,-500.0,0.00011369,2]
[353305678,1739746250462,-500.0,0.00011369,2]
[353305679,1739746250470,-500.0,0.00011369,2]
[353305680,1739746250480,-500.0,0.00011369,2]
[353305681,1739746250490,-500.0,0.00011369,2]
[353305682,1739746250499,-500.0,0.00011369,2]
[353305683,1739746250509,-500.0,0.00011369,2]
[353305684,1739746250519,-500.0,0.00011369,2]
[353305685,1739746250529,-500.0,0.00011369,2]
[353305686,1739746250539,-552.91,0.00011369,2]
[353305687,1739746250548,-500.0,0.00011369,2]
[353305688,1739746250557,-500.0,0.00011369,2]
[353305689,1739746250567,-500.0,0.00011369,2]
[353305690,1739746250576,-500.0,0.00011369,2]
[353305691,1739746250585,-500.0,0.00011369,2]
[353305692,1739746250594,-500.0,0.00011369,2]
[353305693,1739746250603,-500.0,0.00011369,2]
[353305694,1739746250612,-500.0,0.00011369,2]
[353305695,1739746250621,-500.0,0.00011369,2]
[353305696,1739746250631,-500.0,0.00011369,2]
[353305697,1739746250640,-500.0,0.00011369,2]
[353305698,1739746250649,-500.0,0.00011369,2]
[353305699,1739746250658,-505.67,0.00011369,2]
[353305700,1739746250667,-500.0,0.00011369,2]
[353305701,1739746250676,-500.0,0.00011369,2]
[353305702,1739746250685,-500.0,0.00011369,2]
[353305703,1739746250694,-554.98,0.00011369,2]
[353305704,1739746250703,-500.0,0.00011369,2]
[353305705,1739746250712,-500.0,0.00011369,2]
[353305706,1739746250722,-500.0,0.00011369,2]
[353305707,1739746250731,-500.0,0.00011369,2]
[353305708,1739746250739,-500.0,0.00011369,2]
[353305709,1739746250748,-1469.53,0.00011369,2]
[353305710,1739746250757,-500.0,0.00011369,2]
[353305711,1739746250766,-500.0,0.00011369,2]
[353305712,1739746250775,-500.0,0.00011369,2]
[353305713,1739746250784,-252.129156,0.00011369,2]
[353305714,1739746250793,-500.0,0.00011369,2]
[353305715,1739746250802,-500.0,0.00011369,2]
[353305716,1739746250811,-500.0,0.00011369,2]
[353305717,1739746250819,-356.180502,0.00011369,2]
[353305718,1739746250828,-500.0,0.00011369,2]
[353305719,1739746250837,-500.0,0.00011369,2]
[353305720,1739746250846,-500.0,0.00011369,2]
[353305721,1739746250855,-500.0,0.00011369,2]
[353305722,1739746250864,-503.24,0.00011369,2]
[353305723,1739746250874,-1283.72,0.00011369,2]
[353305724,1739746250883,-500.0,0.00011369,2]
[353305725,1739746250892,-500.0,0.00011369,2]
[353305726,1739746250901,-500.0,0.00011369,2]
[353305727,1739746250910,-500.0,0.00011369,2]
[353305728,1739746250919,-500.0,0.00011369,2]
[353305729,1739746250927,-500.0,0.00011369,2]
[353305730,1739746250936,-500.0,0.00011369,2]
[353305731,1739746250946,-919.15,0.00011369,2]
[353305732,1739746250955,-500.0,0.00011369,2]
[353305733,1739746250964,-1004.57,0.00011369,2]
[353305734,1739746250973,-500.0,0.00011369,2]
[353305735,1739746250982,-500.0,0.00011369,2]
[353305736,1739746250991,-500.0,0.00011369,2]
[353305737,1739746251000,-500.0,0.00011369,2]
[353305738,1739746251009,-523.61,0.00011369,2]
[353305739,1739746251018,-500.0,0.00011369,2]
[353305740,1739746251027,-500.0,0.00011369,2]
[353305741,1739746251036,-655.36,0.00011369,2]
[353305742,1739746251046,-500.0,0.00011369,2]
[353305743,1739746251055,-500.0,0.00011369,2]
[353305744,1739746251065,-500.0,0.00011369,2]
[353305745,1739746251074,-500.0,0.00011369,2]
[353305746,1739746251083,-572.2,0.00011369,2]
[353305747,1739746251093,-500.0,0.00011369,2]
[353305748,1739746251102,-500.0,0.00011369,2]
[353305749,1739746251112,-574.57,0.00011369,2]
[353305750,1739746251121,-500.0,0.00011369,2]
[353305751,1739746251130,-1262.77,0.00011369,2]
[353305752,1739746251139,-543.04,0.00011369,2]
[353305753,1739746251150,-500.0,0.00011369,2]
[353305754,1739746251158,-680.0,0.00011369,2]
[353305755,1739746251167,-536.45,0.00011369,2]
[353305756,1739746251178,-500.0,0.00011369,2]
[353305757,1739746251188,-614.85,0.00011369,2]
[353305758,1739746251197,-500.0,0.00011369,2]
[353305759,1739746251206,-500.0,0.00011369,2]
[353305760,1739746251215,-500.0,0.00011369,2]
[353305761,1739746251225,-500.0,0.00011369,2]
[353305762,1739746251234,-639.79,0.00011369,2]
[353305763,1739746251243,-500.0,0.00011369,2]
[353305764,1739746251252,-500.0,0.00011369,2]
[353305765,1739746251261,-500.0,0.00011369,2]
[353305766,1739746251271,-500.0,0.00011369,2]
[353305767,1739746251281,-500.0,0.00011369,2]
[353305768,1739746251290,-500.0,0.00011369,2]
[353305769,1739746251299,-824.79,0.00011369,2]
[353305770,1739746251309,-500.0,0.00011369,2]
[353305771,1739746251318,-601.42,0.00011369,2]
[353305772,1739746251327,-952.25,0.00011369,2]
[353305773,1739746251337,-500.0,0.00011369,2]
[353305774,1739746251346,-500.0,0.00011369,2]
[353305775,1739746251355,-530.01,0.00011369,2]
[353305776,1739746251364,-500.0,0.00011369,2]
[353305777,1739746251373,-500.0,0.00011369,2]
[353305778,1739746251383,-1308.24,0.00011369,2]
[353305779,1739746251392,-500.0,0.00011369,2]
[353305780,1739746251406,-500.0,0.00011369,2]
[353305781,1739746251415,-675.02,0.00011369,2]
[353305782,1739746251425,-500.0,0.00011369,2]
[353305783,1739746251434,-500.0,0.00011369,2]
[353305784,1739746251445,-809.67,0.00011369,2]
[353305785,1739746251454,-595.22,0.00011369,2]
[353305786,1739746251463,-500.0,0.00011369,2]
[353305787,1739746251472,-500.0,0.00011369,2]
[353305788,1739746251481,-503.39,0.00011369,2]
[353305789,1739746251490,-500.0,0.00011369,2]
[353305790,1739746251500,-221.85,0.00011369,2]
[353305791,1739746251509,-500.0,0.00011369,2]
[353305792,1739746251520,-500.0,0.00011369,2]
[353305793,1739746251530,-534.3,0.00011369,2]
[353305794,1739746251539,-500.0,0.00011369,2]
[353305795,1739746251548,-537.51,0.00011369,2]
[353305796,1739746251557,-878.89,0.00011369,2]
[353305797,1739746251566,-500.0,0.00011369,2]
[353305798,1739746251575,-500.0,0.00011369,2]
[353305799,1739746251584,-500.0,0.00011369,2]
[353305800,1739746251594,-500.0,0.00011369,2]
[353305801,1739746251603,-500.0,0.00011369,2]
[353305802,1739746251612,-500.0,0.00011369,2]
[353305803,1739746251621,-632.77,0.00011369,2]
[353305804,1739746251630,-500.0,0.00011369,2]
[353305805,1739746251639,-500.0,0.00011369,2]
[353305806,1739746251648,-578.41,0.00011369,2]
[353305807,1739746251657,-500.0,0.00011369,2]
[353305808,1739746251666,-500.0,0.00011369,2]
[353305809,1739746251675,-500.0,0.00011369,2]
[353305810,1739746251684,-500.0,0.00011369,2]
[353305811,1739746251693,-1360.0,0.00011436,2]
[353305812,1739746251702,-1585.24,0.00011446,2]
[353305813,1739746251712,-1325.55,0.00011446,2]
[353305814,1739746251721,-1325.55,0.00011446,2]
[353305815,1739746251731,-1325.55,0.00011446,2]
[353305816,1739746251740,-1325.55,0.00011446,2]
[353305817,1739746251749,-1325.55,0.00011446,2]
[353305818,1739746251759,-1325.55,0.00011446,2]
[353305819,1739746251768,-1325.55,0.00011446,2]
[353305820,1739746251777,-1325.55,0.00011446,2]
[353305821,1739746251786,-1325.55,0.00011446,2]
[353305822,1739746251796,-1325.55,0.00011446,2]
[353305823,1739746251805,-1325.55,0.00011446,2]
[353305824,1739746251815,-1325.55,0.00011446,2]
[353305825,1739746251824,-678.62766562,0.00011452,3]
[353305826,1739746251833,-99791.64868607,0.00011452,3]
[353305827,1739746252020,-2907.36907012,0.00011452,3]
[353305828,1739746252031,-12778.41770706,0.00011452,3]
[353305829,1739746252042,-573.67999995,0.00011452,3]
[353305830,1739746252052,-5127.36046357,0.00011452,3]
[353305831,1739746252063,-18065.53095398,0.00011452,3]
[353305832,1739746252073,-86355.46715608,0.00011452,3]
[353305833,1739746252113,-500.0,0.00011123,2]
[353305834,1739746252122,-6254.7107173,0.00011452,3]
[353305835,1739746252134,-13343.64736328,0.00011452,3]
[353305836,1739746252145,-13392.44166678,0.00011452,3]
[353305837,1739746252156,-7387.66373082,0.00011452,3]
[353305838,1739746252175,-500.0,0.00011369,2]
[353305839,1739746252184,-117.74561553,0.00011452,3]
[353305840,1739746252195,-4293.62821645,0.00011452,3]
[353305841,1739746252206,-35684.50328488,0.00011452,3]
[353305842,1739746252223,-774.6985844,0.00011452,3]
[353305843,1739746252241,-500.0,0.00011205,2]
[353305844,1739746252250,-107693.87601136,0.00011452,3]
[353305845,1739746252261,-309.39897783,0.00011452,3]
[353305846,1739746252271,-992.78414107,0.00011452,3]
[353305847,1739746252282,-2467.30921759,0.00011452,3]
[353305848,1739746252293,-396.21290622,0.00011452,3]
[353305849,1739746252304,-2288.91045091,0.00011452,3]
[353305850,1739746252315,-721.24525557,0.00011452,3]
[353305851,1739746252326,-463.95250134,0.00011452,3]
[353305852,1739746252342,-14886.15079869,0.00011452,3]
[353305853,1739746252353,-76825.80000002,0.00011452,3]
[353305854,1739746252632,-500.0,0.00011287,2]
[353305855,1739746252642,-500.0,0.00011369,2]
[353305856,1739746252650,-6199.92052775,0.00011452,3]
[353305857,1739746252661,-692.55433843,0.00011452,3]
[353305858,1739746252672,-1017.6830018,0.00011452,3]
[353305859,1739746252683,-1189.88173211,0.00011452,3]
[353305860,1739746252694,-446.51173508,0.00011452,3]
[353305861,1739746252712,-500.0,0.00011452,3]
[353305862,1739746252723,-750.33156524,0.00011452,3]
[353305863,1739746252740,-457.34288904,0.00011452,3]
[353305864,1739746290861,-300.0,0.00010957,2]
[353305865,1739746290884,-500.0,0.00010958,2]
[353305866,1739746290907,-500.0,0.00010958,2]
[353305867,1739746290929,-1102.15,0.00010958,2]
[353305868,1739746290952,-500.0,0.00010958,2]
[353305869,1739746290975,-500.0,0.00010958,2]
[353305870,1739746290997,-500.0,0.00010958,2]
[353305871,1739746291020,-500.0,0.00010958,2]
[353305872,1739746291041,-500.0,0.00010958,2]
[353305873,1739746291064,-500.0,0.00010958,2]
[353305874,1739746291088,-500.0,0.00010958,2]
[353305875,1739746291111,-500.0,0.00010958,2]
[353305876,1739746291134,-500.0,0.00010958,2]
[353305877,1739746291158,-500.0,0.00010958,2]
[353305878,1739746291179,-500.0,0.00010958,2]
[353305879,1739746291201,-500.0,0.00010958,2]
[353305880,1739746291222,-500.0,0.00010958,2]
[353305881,1739746291244,-500.0,0.00010958,2]
[353305882,1739746291265,-849.25,0.00010958,2]
[353305883,1739746291288,-500.0,0.00010958,2]
[353305884,1739746291310,-500.0,0.00010958,2]
[353305885,1739746291335,-500.0,0.00010958,2]
[353305886,1739746291359,-962.79,0.00010958,2]
[353305887,1739746291384,-500.0,0.00010958,2]
[353305888,1739746291408,-500.0,0.00010958,2]
[353305889,1739746291430,-500.0,0.00010958,2]
[353305890,1739746291454,-216.65,0.00011041,2]
[353305891,1739746291480,-1102.15,0.00011041,2]
[353305892,1739746291505,-500.0,0.00011041,2]
[353305893,1739746291527,-500.0,0.00011041,2]
[353305894,1739746291554,-227.03,0.00011041,2]
[353305895,1739746291577,-500.0,0.00011041,2]
[353305896,1739746291600,-500.0,0.00011041,2]
[353305897,1739746291622,-500.0,0.00011041,2]
[353305898,1739746291645,-500.0,0.00011041,2]
[353305899,1739746291668,-500.0,0.00011041,2]
[353305900,1739746291692,-500.0,0.00011041,2]
[353305901,1739746291715,-562.62,0.00011041,2]
[353305902,1739746291737,-500.0,0.00011041,2]
[353305903,1739746291759,-500.0,0.00011041,2]
[353305904,1739746291781,-849.25,0.00011041,2]
[353305905,1739746291803,-500.0,0.00011041,2]
[353305906,1739746291825,-500.0,0.00011041,2]
[353305907,1739746291847,-500.0,0.00011041,2]
[353305908,1739746291871,-962.79,0.00011041,2]
[353305909,1739746291895,-500.0,0.00011041,2]
[353305910,1739746291918,-500.0,0.00011041,2]